[Event "*** Titled Tuesday Blitz"]
[Site "Chess.com"]
[Date "2020.11.24"]
[Round "2"]
[White "dretch"]
[Black "Bacyanide"]
[Result "1-0"]
[WhiteElo "2802"]
[BlackElo "2416"]
[TimeControl "180+1"]
[EndTime "10:31:51 PST"]
[Termination "dretch won by checkmate"]

1. d4 {[%clk 0:03:00.9]} 1... Nf6 {[%clk 0:02:58.4]} 2. c4 {[%clk 0:03:00.7]}
2... g6 {[%clk 0:02:58.3]} 3. Nc3 {[%clk 0:03:00.9]} 3... Bg7 {[%clk 0:02:58.6]}
4. e4 {[%clk 0:03:01]} 4... d6 {[%clk 0:02:57.3]} 5. Nf3 {[%clk 0:03:01.3]} 5...
O-O {[%clk 0:02:57.5]} 6. h3 {[%clk 0:03:01.6]} 6... e5 {[%clk 0:02:52.4]} 7.
dxe5 {[%clk 0:03:02.5]} 7... dxe5 {[%clk 0:02:52.4]} 8. Qxd8 {[%clk 0:03:03.4]}
8... Rxd8 {[%clk 0:02:52.3]} 9. Bg5 {[%clk 0:03:04.3]} 9... Re8 {[%clk
0:02:38.6]} 10. Nd5 {[%clk 0:03:03.8]} 10... Nxd5 {[%clk 0:02:37.3]} 11. cxd5
{[%clk 0:03:04.7]} 11... c6 {[%clk 0:02:21.1]} 12. Bc4 {[%clk 0:03:04.1]} 12...
b5 {[%clk 0:02:19.8]} 13. Bb3 {[%clk 0:03:02.8]} 13... c5 {[%clk 0:02:17.2]} 14.
a4 {[%clk 0:02:55.2]} 14... c4 {[%clk 0:02:17.1]} 15. Bd1 {[%clk 0:02:53.9]}
15... b4 {[%clk 0:02:09.8]} 16. Rc1 {[%clk 0:02:52.1]} 16... Ba6 {[%clk
0:02:09.4]} 17. Be2 {[%clk 0:02:51.1]} 17... Rc8 {[%clk 0:02:06.2]} 18. Nd2
{[%clk 0:02:49.8]} 18... c3 {[%clk 0:02:05.8]} 19. bxc3 {[%clk 0:02:47.5]} 19...
bxc3 {[%clk 0:02:01.3]} 20. Nb1 {[%clk 0:02:44.8]} 20... c2 {[%clk 0:01:37.4]}
21. Na3 {[%clk 0:02:44.5]} 21... Bf8 {[%clk 0:01:36.7]} 22. Nxc2 {[%clk
0:02:37.4]} 22... Bxe2 {[%clk 0:01:35.4]} 23. Kxe2 {[%clk 0:02:37.3]} 23... Rc4
{[%clk 0:01:36]} 24. Ne3 {[%clk 0:02:32]} 24... Rxc1 {[%clk 0:01:24.1]} 25. Rxc1
{[%clk 0:02:31]} 25... Nd7 {[%clk 0:01:25]} 26. Ng4 {[%clk 0:02:21.3]} 26... Bg7
{[%clk 0:01:16.7]} 27. Rc7 {[%clk 0:02:19]} 27... Nb6 {[%clk 0:01:03.1]} 28. a5
{[%clk 0:02:15.7]} 28... Na4 {[%clk 0:01:02.9]} 29. d6 {[%clk 0:02:08.5]} 29...
f5 {[%clk 0:00:57]} 30. Nh6+ {[%clk 0:02:00.2]} 30... Bxh6 {[%clk 0:00:55]} 31.
Bxh6 {[%clk 0:02:01.1]} 31... Rd8 {[%clk 0:00:39.2]} 32. Rc4 {[%clk 0:01:40.5]}
32... Nb2 {[%clk 0:00:26.9]} 33. Rb4 {[%clk 0:01:39.9]} 33... Rxd6 {[%clk
0:00:24.2]} 34. Rxb2 {[%clk 0:01:39.8]} 34... f4 {[%clk 0:00:23.1]} 35. Rb7
{[%clk 0:01:37.1]} 35... Ra6 {[%clk 0:00:21.9]} 36. Rg7+ {[%clk 0:01:35.6]}
36... Kh8 {[%clk 0:00:22]} 37. Rf7 {[%clk 0:01:35.9]} 37... Kg8 {[%clk
0:00:22.9]} 38. Rf8# {[%clk 0:01:36]} 1-0

[Event "*** Titled Tuesday Blitz"]
[Site "Chess.com"]
[Date "2020.11.24"]
[Round "2"]
[White "Chessdude1987"]
[Black "chito89"]
[Result "1-0"]
[WhiteElo "2361"]
[BlackElo "2728"]
[TimeControl "180+1"]
[EndTime "10:31:52 PST"]
[Termination "Chessdude1987 won by resignation"]

1. e4 {[%clk 0:03:00.9]} 1... c6 {[%clk 0:02:55.1]} 2. d4 {[%clk 0:03:00.4]}
2... d5 {[%clk 0:02:54.8]} 3. exd5 {[%clk 0:03:00.1]} 3... cxd5 {[%clk
0:02:55.2]} 4. c4 {[%clk 0:03:00.4]} 4... Nf6 {[%clk 0:02:53.6]} 5. Nc3 {[%clk
0:03:00.4]} 5... Nc6 {[%clk 0:02:53.7]} 6. Bg5 {[%clk 0:03:00.2]} 6... e6 {[%clk
0:02:11.9]} 7. Nf3 {[%clk 0:02:59.6]} 7... Be7 {[%clk 0:02:07.2]} 8. c5 {[%clk
0:02:59.3]} 8... O-O {[%clk 0:02:02.3]} 9. Bb5 {[%clk 0:02:54.8]} 9... Bd7
{[%clk 0:01:57.6]} 10. Bxc6 {[%clk 0:02:52.1]} 10... Bxc6 {[%clk 0:01:54.1]} 11.
O-O {[%clk 0:02:51.2]} 11... b6 {[%clk 0:01:44.9]} 12. b4 {[%clk 0:02:49.7]}
12... bxc5 {[%clk 0:01:37.4]} 13. bxc5 {[%clk 0:02:47.6]} 13... Nd7 {[%clk
0:01:06.7]} 14. Bf4 {[%clk 0:02:33.9]} 14... Bf6 {[%clk 0:01:06.1]} 15. Re1
{[%clk 0:02:31]} 15... Nxc5 {[%clk 0:00:59]} 16. Ne5 {[%clk 0:02:15.2]} 16...
Bxe5 {[%clk 0:00:51]} 17. Bxe5 {[%clk 0:02:12.7]} 17... Ne4 {[%clk 0:00:50.4]}
18. Nxe4 {[%clk 0:01:56.3]} 18... dxe4 {[%clk 0:00:49.8]} 19. Qg4 {[%clk
0:01:55.4]} 19... g6 {[%clk 0:00:47.5]} 20. Rac1 {[%clk 0:01:39.8]} 20... Bd5
{[%clk 0:00:45.3]} 21. h4 {[%clk 0:01:34.1]} 21... h5 {[%clk 0:00:44.8]} 22. Qf4
{[%clk 0:01:28.7]} 22... f6 {[%clk 0:00:35.9]} 23. Qh6 {[%clk 0:01:12.1]} 23...
Qe8 {[%clk 0:00:30]} 24. Rc7 {[%clk 0:01:07.4]} 24... Rf7 {[%clk 0:00:22.3]} 1-0

[Event "*** Titled Tuesday Blitz"]
[Site "Chess.com"]
[Date "2020.11.24"]
[Round "2"]
[White "WPWPWP-2015"]
[Black "Infernal_XaM"]
[Result "0-1"]
[WhiteElo "2519"]
[BlackElo "2830"]
[TimeControl "180+1"]
[EndTime "10:31:54 PST"]
[Termination "Infernal_XaM won by checkmate"]

1. e4 {[%clk 0:03:00.4]} 1... e5 {[%clk 0:02:59.5]} 2. Nf3 {[%clk 0:02:59.7]}
2... d6 {[%clk 0:02:59.3]} 3. Bc4 {[%clk 0:02:56.9]} 3... c6 {[%clk 0:02:48]} 4.
d4 {[%clk 0:02:54.1]} 4... Nd7 {[%clk 0:02:48]} 5. Be3 {[%clk 0:02:42.7]} 5...
Be7 {[%clk 0:02:45.7]} 6. dxe5 {[%clk 0:02:38.4]} 6... dxe5 {[%clk 0:02:44.5]}
7. O-O {[%clk 0:02:20.3]} 7... h6 {[%clk 0:02:35.7]} 8. h3 {[%clk 0:02:17.9]}
8... Ngf6 {[%clk 0:02:35]} 9. Nbd2 {[%clk 0:02:15.8]} 9... Qc7 {[%clk
0:02:33.9]} 10. c3 {[%clk 0:02:14.5]} 10... a5 {[%clk 0:02:33.2]} 11. a4 {[%clk
0:02:13.4]} 11... g5 {[%clk 0:02:31.2]} 12. Nh2 {[%clk 0:02:11.1]} 12... Nf8
{[%clk 0:02:30.9]} 13. Qb3 {[%clk 0:02:01.2]} 13... Rh7 {[%clk 0:02:29.2]} 14.
Bb6 {[%clk 0:01:44.6]} 14... Qb8 {[%clk 0:02:29]} 15. Rad1 {[%clk 0:01:36]}
15... N6d7 {[%clk 0:02:28.1]} 16. Be3 {[%clk 0:01:34.1]} 16... Ng6 {[%clk
0:02:24.1]} 17. Rfe1 {[%clk 0:01:30.1]} 17... Qc7 {[%clk 0:02:23.9]} 18. Bf1
{[%clk 0:01:25.3]} 18... Nc5 {[%clk 0:02:21.8]} 19. Qc2 {[%clk 0:01:24.5]} 19...
Nf4 {[%clk 0:02:20.9]} 20. Nc4 {[%clk 0:01:15.9]} 20... h5 {[%clk 0:02:18.4]}
21. Nf3 {[%clk 0:01:03.7]} 21... f6 {[%clk 0:02:15.4]} 22. b4 {[%clk 0:00:54]}
22... axb4 {[%clk 0:02:13.2]} 23. cxb4 {[%clk 0:00:53.8]} 23... Nxa4 {[%clk
0:02:13.3]} 24. Ra1 {[%clk 0:00:53.4]} 24... b5 {[%clk 0:02:13.1]} 25. Nb2
{[%clk 0:00:47.5]} 25... Bxb4 {[%clk 0:02:06]} 26. Bxb5 {[%clk 0:00:44.2]} 26...
cxb5 {[%clk 0:02:05.2]} 27. Qb3 {[%clk 0:00:40.9]} 27... Bf8 {[%clk 0:01:51]}
28. Rec1 {[%clk 0:00:27.9]} 28... Qd7 {[%clk 0:01:49.7]} 29. Rd1 {[%clk
0:00:26.4]} 29... Nxb2 {[%clk 0:01:48.3]} 30. Rxd7 {[%clk 0:00:18.1]} 30...
Rxa1+ {[%clk 0:01:47.2]} 31. Kh2 {[%clk 0:00:18.4]} 31... Rxd7 {[%clk
0:01:45.2]} 32. Qxb2 {[%clk 0:00:16.6]} 32... Rdd1 {[%clk 0:01:43.2]} 33. Qxb5+
{[%clk 0:00:15.7]} 33... Bd7 {[%clk 0:01:43.3]} 34. Qb8+ {[%clk 0:00:15.3]}
34... Kf7 {[%clk 0:01:43.5]} 35. Qb3+ {[%clk 0:00:13.8]} 35... Kg7 {[%clk
0:01:43.6]} 36. h4 {[%clk 0:00:10.5]} 36... Rh1+ {[%clk 0:01:42.3]} 37. Kg3
{[%clk 0:00:10.4]} 37... Ne2# {[%clk 0:01:42.9]} 0-1

[Event "*** Titled Tuesday Blitz"]
[Site "Chess.com"]
[Date "2020.11.24"]
[Round "2"]
[White "Rhinos1"]
[Black "Firegrizzly"]
[Result "0-1"]
[WhiteElo "2226"]
[BlackElo "2608"]
[TimeControl "180+1"]
[EndTime "10:31:57 PST"]
[Termination "Firegrizzly won by checkmate"]

1. e4 {[%clk 0:03:00]} 1... c5 {[%clk 0:02:58.8]} 2. Nc3 {[%clk 0:02:58.3]} 2...
e6 {[%clk 0:02:57]} 3. f4 {[%clk 0:02:57.4]} 3... a6 {[%clk 0:02:56]} 4. Nf3
{[%clk 0:02:57.3]} 4... b5 {[%clk 0:02:55.2]} 5. a3 {[%clk 0:02:47.8]} 5... Bb7
{[%clk 0:02:54.2]} 6. d3 {[%clk 0:02:47]} 6... Nc6 {[%clk 0:02:52.2]} 7. Be2
{[%clk 0:02:46.1]} 7... Nf6 {[%clk 0:02:51.4]} 8. O-O {[%clk 0:02:46]} 8... d5
{[%clk 0:02:50.3]} 9. Qe1 {[%clk 0:02:22.9]} 9... Nd4 {[%clk 0:02:44.6]} 10.
Nxd4 {[%clk 0:02:14.5]} 10... cxd4 {[%clk 0:02:45.5]} 11. Nd1 {[%clk 0:02:14]}
11... dxe4 {[%clk 0:02:45.1]} 12. dxe4 {[%clk 0:02:11.1]} 12... Bxe4 {[%clk
0:02:44.5]} 13. Bf3 {[%clk 0:02:07.1]} 13... Bd5 {[%clk 0:02:40.6]} 14. f5
{[%clk 0:01:58.3]} 14... Bc5 {[%clk 0:02:36.2]} 15. fxe6 {[%clk 0:01:55.6]}
15... fxe6 {[%clk 0:02:34.6]} 16. Qg3 {[%clk 0:01:40.2]} 16... d3+ {[%clk
0:02:29.3]} 17. Be3 {[%clk 0:01:38.2]} 17... Qb6 {[%clk 0:02:24.8]} 18. Bxd5
{[%clk 0:01:33.3]} 18... Nxd5 {[%clk 0:02:19.6]} 19. Bxc5 {[%clk 0:01:10.1]}
19... Qxc5+ {[%clk 0:02:18.5]} 20. Kh1 {[%clk 0:01:10.3]} 20... dxc2 {[%clk
0:02:16.1]} 21. Nc3 {[%clk 0:01:09]} 21... Nxc3 {[%clk 0:02:06.9]} 22. bxc3
{[%clk 0:01:09.9]} 22... O-O-O {[%clk 0:02:05.9]} 23. a4 {[%clk 0:00:52.3]}
23... Rhf8 {[%clk 0:01:57.2]} 24. Rfe1 {[%clk 0:00:46.1]} 24... bxa4 {[%clk
0:01:45.1]} 25. Qg4 {[%clk 0:00:23.3]} 25... Rf5 {[%clk 0:01:35.4]} 26. Qxa4
{[%clk 0:00:22.2]} 26... Qb5 {[%clk 0:01:31]} 27. Qxc2 {[%clk 0:00:22]} 27...
Rdf8 {[%clk 0:01:23.8]} 28. c4 {[%clk 0:00:20.6]} 28... Qc6 {[%clk 0:01:23.3]}
29. Rab1 {[%clk 0:00:17.2]} 29... Rf2 {[%clk 0:01:21.9]} 30. Qb3 {[%clk
0:00:13.2]} 30... Qxg2# {[%clk 0:01:20.5]} 0-1

[Event "*** Titled Tuesday Blitz"]
[Site "Chess.com"]
[Date "2020.11.24"]
[Round "2"]
[White "Chessdreamer2020"]
[Black "Lestofante90"]
[Result "0-1"]
[WhiteElo "2513"]
[BlackElo "2810"]
[TimeControl "180+1"]
[EndTime "10:31:58 PST"]
[Termination "Lestofante90 won by resignation"]

1. e4 {[%clk 0:02:52.9]} 1... c6 {[%clk 0:02:58.5]} 2. Nc3 {[%clk 0:02:51.3]}
2... d5 {[%clk 0:02:58.4]} 3. Nf3 {[%clk 0:02:51.6]} 3... Bg4 {[%clk 0:02:58]}
4. h3 {[%clk 0:02:51.3]} 4... Bxf3 {[%clk 0:02:57.9]} 5. Qxf3 {[%clk 0:02:51.8]}
5... e6 {[%clk 0:02:58.8]} 6. d3 {[%clk 0:02:52.4]} 6... Bc5 {[%clk 0:02:57]} 7.
g3 {[%clk 0:02:51.9]} 7... Nd7 {[%clk 0:02:49.9]} 8. Bg2 {[%clk 0:02:52.3]} 8...
Ne7 {[%clk 0:02:47.4]} 9. O-O {[%clk 0:02:52.5]} 9... O-O {[%clk 0:02:47.3]} 10.
Qe2 {[%clk 0:02:52.6]} 10... a5 {[%clk 0:02:41.4]} 11. Kh2 {[%clk 0:02:42.2]}
11... a4 {[%clk 0:02:41.2]} 12. a3 {[%clk 0:02:42.5]} 12... Ng6 {[%clk
0:02:29.8]} 13. h4 {[%clk 0:02:35.1]} 13... f5 {[%clk 0:02:26.9]} 14. exf5
{[%clk 0:02:22]} 14... exf5 {[%clk 0:02:25.5]} 15. Bg5 {[%clk 0:02:15]} 15...
Qc7 {[%clk 0:02:06.7]} 16. h5 {[%clk 0:01:45.2]} 16... Nge5 {[%clk 0:02:03.7]}
17. Bf4 {[%clk 0:01:39.8]} 17... Bd6 {[%clk 0:01:56.5]} 18. Kg1 {[%clk
0:01:37.9]} 18... Rfe8 {[%clk 0:01:44.9]} 19. Rfe1 {[%clk 0:01:32.6]} 19... Nf6
{[%clk 0:01:43.5]} 20. h6 {[%clk 0:01:28.7]} 20... Nf7 {[%clk 0:01:39]} 21. Bxd6
{[%clk 0:01:15.3]} 21... Qxd6 {[%clk 0:01:36.2]} 22. Qd2 {[%clk 0:01:14.5]}
22... Nxh6 {[%clk 0:01:34.2]} 23. Qg5 {[%clk 0:01:15]} 23... Re5 {[%clk
0:01:00.9]} 24. Qf4 {[%clk 0:01:03.4]} 24... Rxe1+ {[%clk 0:00:59.2]} 25. Rxe1
{[%clk 0:01:04.3]} 25... Qxf4 {[%clk 0:00:59.3]} 26. gxf4 {[%clk 0:01:05.2]}
26... Kf7 {[%clk 0:00:57.4]} 27. Bf3 {[%clk 0:01:01.8]} 27... Nhg8 {[%clk
0:00:44]} 28. Na2 {[%clk 0:00:54.8]} 28... Re8 {[%clk 0:00:41.8]} 29. c4 {[%clk
0:00:55.7]} 29... Rxe1+ {[%clk 0:00:41.3]} 0-1

[Event "*** Titled Tuesday Blitz"]
[Site "Chess.com"]
[Date "2020.11.24"]
[Round "2"]
[White "Chessalary"]
[Black "FMOlexandrProhorov"]
[Result "1-0"]
[WhiteElo "2430"]
[BlackElo "2169"]
[TimeControl "180+1"]
[EndTime "10:31:59 PST"]
[Termination "Chessalary won by resignation"]

1. e4 {[%clk 0:03:00.4]} 1... c5 {[%clk 0:02:56]} 2. Nf3 {[%clk 0:03:00.5]} 2...
Nc6 {[%clk 0:02:55.1]} 3. d4 {[%clk 0:03:01.2]} 3... cxd4 {[%clk 0:02:55.3]} 4.
Nxd4 {[%clk 0:03:02.1]} 4... Nf6 {[%clk 0:02:54.9]} 5. Nc3 {[%clk 0:03:02.1]}
5... e5 {[%clk 0:02:55.1]} 6. Ndb5 {[%clk 0:03:00.4]} 6... d6 {[%clk 0:02:55.3]}
7. Bg5 {[%clk 0:03:00.4]} 7... a6 {[%clk 0:02:55.4]} 8. Na3 {[%clk 0:03:00.7]}
8... b5 {[%clk 0:02:55.6]} 9. Nd5 {[%clk 0:03:01.2]} 9... Be7 {[%clk 0:02:56.1]}
10. Bxf6 {[%clk 0:03:01.8]} 10... Bxf6 {[%clk 0:02:56.6]} 11. c3 {[%clk
0:03:02.5]} 11... Bg5 {[%clk 0:02:56.4]} 12. Nc2 {[%clk 0:03:03.2]} 12... O-O
{[%clk 0:02:56.2]} 13. a4 {[%clk 0:03:03.8]} 13... bxa4 {[%clk 0:02:55.5]} 14.
Rxa4 {[%clk 0:03:04.7]} 14... a5 {[%clk 0:02:56]} 15. Bc4 {[%clk 0:03:04.9]}
15... Rb8 {[%clk 0:02:54.3]} 16. b3 {[%clk 0:03:05]} 16... Kh8 {[%clk 0:02:48]}
17. O-O {[%clk 0:02:45.7]} 17... f5 {[%clk 0:02:44.7]} 18. exf5 {[%clk
0:02:45.9]} 18... Bxf5 {[%clk 0:02:44.8]} 19. Nce3 {[%clk 0:02:46.3]} 19... Bg6
{[%clk 0:02:38.9]} 20. b4 {[%clk 0:02:21.1]} 20... axb4 {[%clk 0:02:32.5]} 21.
Nxb4 {[%clk 0:02:11.6]} 21... Nxb4 {[%clk 0:02:11.5]} 22. Rxb4 {[%clk 0:02:12]}
22... Rxb4 {[%clk 0:01:54.6]} 23. cxb4 {[%clk 0:02:12.9]} 23... Bxe3 {[%clk
0:01:13.1]} 24. fxe3 {[%clk 0:02:11.7]} 24... h6 {[%clk 0:01:10.3]} 25. Rxf8+
{[%clk 0:02:04.5]} 25... Qxf8 {[%clk 0:01:11.2]} 26. Qd5 {[%clk 0:02:04.6]}
26... Qb8 {[%clk 0:00:56]} 27. b5 {[%clk 0:01:59.6]} 27... h5 {[%clk 0:00:27.5]}
28. b6 {[%clk 0:01:56.8]} 28... Kh7 {[%clk 0:00:27.7]} 29. b7 {[%clk 0:01:54.8]}
29... Qa7 {[%clk 0:00:24.1]} 30. Kf2 {[%clk 0:01:42.5]} 30... h4 {[%clk
0:00:19.7]} 31. Qg8+ {[%clk 0:01:38.9]} 31... Kh6 {[%clk 0:00:19.3]} 32. b8=Q
{[%clk 0:01:39.1]} 32... Qe7 {[%clk 0:00:17.4]} 33. Qbf8 {[%clk 0:01:32.7]} 1-0

[Event "*** Titled Tuesday Blitz"]
[Site "Chess.com"]
[Date "2020.11.24"]
[Round "2"]
[White "WiktoriaPOL"]
[Black "Pogosian_Manvel"]
[Result "0-1"]
[WhiteElo "2067"]
[BlackElo "2384"]
[TimeControl "180+1"]
[EndTime "10:31:59 PST"]
[Termination "Pogosian_Manvel won by resignation"]

1. c4 {[%clk 0:03:00.9]} 1... e6 {[%clk 0:02:59.9]} 2. Nc3 {[%clk 0:03:00.4]}
2... d5 {[%clk 0:03:00.8]} 3. d4 {[%clk 0:02:59.1]} 3... Be7 {[%clk 0:02:59.6]}
4. cxd5 {[%clk 0:02:58.7]} 4... exd5 {[%clk 0:02:58.6]} 5. Qc2 {[%clk
0:02:58.7]} 5... c6 {[%clk 0:02:58]} 6. Nf3 {[%clk 0:02:57.3]} 6... g6 {[%clk
0:02:54.1]} 7. Bf4 {[%clk 0:02:55.6]} 7... Bf5 {[%clk 0:02:54.2]} 8. Qb3 {[%clk
0:02:55]} 8... Qb6 {[%clk 0:02:52.9]} 9. e3 {[%clk 0:02:41]} 9... Nd7 {[%clk
0:02:40.8]} 10. Be2 {[%clk 0:02:35.1]} 10... Ngf6 {[%clk 0:02:39.6]} 11. O-O
{[%clk 0:02:33.5]} 11... Ne4 {[%clk 0:02:27.7]} 12. Nxe4 {[%clk 0:02:31.9]}
12... Bxe4 {[%clk 0:02:17.3]} 13. Nd2 {[%clk 0:02:26.9]} 13... Bf5 {[%clk
0:02:15.8]} 14. f3 {[%clk 0:02:17.5]} 14... O-O {[%clk 0:02:08.6]} 15. Qxb6
{[%clk 0:02:13.1]} 15... axb6 {[%clk 0:02:06.5]} 16. e4 {[%clk 0:02:11.8]} 16...
Be6 {[%clk 0:02:05.9]} 17. a3 {[%clk 0:02:04.4]} 17... b5 {[%clk 0:02:01.9]} 18.
Rac1 {[%clk 0:02:03]} 18... b4 {[%clk 0:02:01.1]} 19. axb4 {[%clk 0:01:58.1]}
19... Bxb4 {[%clk 0:02:01.1]} 20. Rc2 {[%clk 0:01:56.1]} 20... Ra2 {[%clk
0:01:57.5]} 21. exd5 {[%clk 0:01:49.4]} 21... Bxd5 {[%clk 0:01:54.2]} 22. Bc4
{[%clk 0:01:48.5]} 22... Bxd2 {[%clk 0:01:44.5]} 23. Bxa2 {[%clk 0:01:37.8]}
23... Bxf4 {[%clk 0:01:42.8]} 24. Bxd5 {[%clk 0:01:37.6]} 24... cxd5 {[%clk
0:01:42]} 25. g3 {[%clk 0:01:37.4]} 25... Bd6 {[%clk 0:01:41]} 26. Ra1 {[%clk
0:01:34.5]} 26... Nb6 {[%clk 0:01:32.3]} 27. Ra7 {[%clk 0:01:34]} 27... Rb8
{[%clk 0:01:32.2]} 28. b3 {[%clk 0:01:32.5]} 28... Nc8 {[%clk 0:01:29.3]} 29.
Ra5 {[%clk 0:01:28.5]} 29... Ne7 {[%clk 0:01:28.3]} 30. Kf2 {[%clk 0:01:26.5]}
30... Kf8 {[%clk 0:01:24.8]} 31. f4 {[%clk 0:01:22.2]} 31... Ke8 {[%clk
0:01:24.8]} 32. Kf3 {[%clk 0:01:20.5]} 32... Kd7 {[%clk 0:01:25.2]} 33. g4
{[%clk 0:01:18.2]} 33... Bc7 {[%clk 0:01:12.6]} 34. Rac5 {[%clk 0:01:12.3]}
34... Bb6 {[%clk 0:01:01.8]} 35. R5c3 {[%clk 0:01:02.2]} 35... Bxd4 {[%clk
0:01:01.4]} 36. Rc7+ {[%clk 0:01:00.2]} 36... Kd6 {[%clk 0:00:58.5]} 37. b4
{[%clk 0:00:56.6]} 37... Bb6 {[%clk 0:00:58.7]} 38. R7c3 {[%clk 0:00:55.4]}
38... Nc6 {[%clk 0:00:58.8]} 39. b5 {[%clk 0:00:55.1]} 39... Nd4+ {[%clk
0:00:58.9]} 0-1

[Event "*** Titled Tuesday Blitz"]
[Site "Chess.com"]
[Date "2020.11.24"]
[Round "2"]
[White "PriSachu"]
[Black "Onischuk_V"]
[Result "1-0"]
[WhiteElo "2545"]
[BlackElo "2860"]
[TimeControl "180+1"]
[EndTime "10:32:00 PST"]
[Termination "PriSachu won by resignation"]

1. e4 {[%clk 0:03:00.9]} 1... d6 {[%clk 0:02:59.5]} 2. d4 {[%clk 0:02:59.9]}
2... Nf6 {[%clk 0:02:53.9]} 3. Nc3 {[%clk 0:02:58.4]} 3... g6 {[%clk 0:02:54.5]}
4. Be3 {[%clk 0:02:53.9]} 4... c6 {[%clk 0:02:53.5]} 5. h3 {[%clk 0:02:52.5]}
5... Qa5 {[%clk 0:02:48.3]} 6. Qd2 {[%clk 0:02:46.5]} 6... Nbd7 {[%clk
0:02:47.1]} 7. g4 {[%clk 0:02:23.2]} 7... e5 {[%clk 0:02:42.7]} 8. Nge2 {[%clk
0:02:15.6]} 8... Bg7 {[%clk 0:02:38.2]} 9. Bg2 {[%clk 0:02:14.7]} 9... O-O
{[%clk 0:02:37.8]} 10. O-O {[%clk 0:02:10.7]} 10... Re8 {[%clk 0:02:37]} 11.
Rad1 {[%clk 0:02:07.8]} 11... exd4 {[%clk 0:02:31.1]} 12. Nxd4 {[%clk
0:02:06.9]} 12... Nc5 {[%clk 0:02:30.5]} 13. Nb3 {[%clk 0:01:58]} 13... Nxb3
{[%clk 0:02:29.5]} 14. axb3 {[%clk 0:01:57.7]} 14... Bf8 {[%clk 0:02:08.8]} 15.
Nd5 {[%clk 0:01:41.8]} 15... Qd8 {[%clk 0:02:07.4]} 16. Nxf6+ {[%clk 0:01:40.1]}
16... Qxf6 {[%clk 0:02:07.5]} 17. Bd4 {[%clk 0:01:16]} 17... Qe7 {[%clk
0:02:06.6]} 18. Bc3 {[%clk 0:01:14.6]} 18... c5 {[%clk 0:01:59.3]} 19. f4 {[%clk
0:01:05]} 19... Rb8 {[%clk 0:01:54.1]} 20. e5 {[%clk 0:01:03.2]} 20... Bd7
{[%clk 0:01:35.7]} 21. exd6 {[%clk 0:00:58.5]} 21... Qe3+ {[%clk 0:01:35.6]} 22.
Qxe3 {[%clk 0:00:54.7]} 22... Rxe3 {[%clk 0:01:36]} 23. Rfe1 {[%clk 0:00:55.1]}
23... Rxe1+ {[%clk 0:01:35]} 24. Rxe1 {[%clk 0:00:56]} 24... b6 {[%clk 0:01:29]}
25. Bf6 {[%clk 0:00:53.7]} 25... a5 {[%clk 0:01:19.4]} 26. Kf2 {[%clk
0:00:51.5]} 26... Be6 {[%clk 0:01:11.2]} 27. Rxe6 {[%clk 0:00:48.7]} 27... fxe6
{[%clk 0:01:02.4]} 28. d7 {[%clk 0:00:48.9]} 1-0

[Event "*** Titled Tuesday Blitz"]
[Site "Chess.com"]
[Date "2020.11.24"]
[Round "2"]
[White "RTFrancisco"]
[Black "MarcoRiehle"]
[Result "0-1"]
[WhiteElo "2355"]
[BlackElo "2709"]
[TimeControl "180+1"]
[EndTime "10:32:06 PST"]
[Termination "MarcoRiehle won by resignation"]

1. c4 {[%clk 0:03:00.9]} 1... c5 {[%clk 0:02:59.4]} 2. g3 {[%clk 0:03:00.5]}
2... Nf6 {[%clk 0:02:59.6]} 3. Bg2 {[%clk 0:03:01.1]} 3... d5 {[%clk 0:02:59.7]}
4. cxd5 {[%clk 0:03:01.1]} 4... Nxd5 {[%clk 0:03:00.6]} 5. Nc3 {[%clk
0:03:01.1]} 5... Nc7 {[%clk 0:03:00.2]} 6. Nf3 {[%clk 0:03:00.4]} 6... Nc6
{[%clk 0:02:59.8]} 7. O-O {[%clk 0:03:00.6]} 7... e5 {[%clk 0:02:58.3]} 8. a3
{[%clk 0:03:00.2]} 8... Be6 {[%clk 0:02:55]} 9. Qa4 {[%clk 0:02:40]} 9... f6
{[%clk 0:02:48.8]} 10. b4 {[%clk 0:02:35.4]} 10... Qd7 {[%clk 0:02:46.4]} 11.
bxc5 {[%clk 0:02:20.8]} 11... Bxc5 {[%clk 0:02:45.5]} 12. Rb1 {[%clk 0:02:15.1]}
12... Bb6 {[%clk 0:02:41.4]} 13. Rd1 {[%clk 0:02:04.6]} 13... O-O {[%clk
0:02:38.2]} 14. Bb2 {[%clk 0:01:46.5]} 14... Rfd8 {[%clk 0:02:35.3]} 15. Ne4
{[%clk 0:01:42]} 15... Rac8 {[%clk 0:02:16.4]} 16. d3 {[%clk 0:01:24.1]} 16...
Qf7 {[%clk 0:01:55]} 17. Ba1 {[%clk 0:01:20.2]} 17... Nd5 {[%clk 0:01:43.5]} 18.
e3 {[%clk 0:01:13.6]} 18... h6 {[%clk 0:01:32]} 19. Ned2 {[%clk 0:00:56.9]}
19... Na5 {[%clk 0:01:21.5]} 20. d4 {[%clk 0:00:52.4]} 20... Nc3 {[%clk
0:01:06.7]} 21. Bxc3 {[%clk 0:00:51.1]} 21... Rxc3 {[%clk 0:01:07.6]} 22. dxe5
{[%clk 0:00:41.5]} 22... Rcd3 {[%clk 0:01:07.5]} 23. Ne4 {[%clk 0:00:32.3]}
23... Bb3 {[%clk 0:01:01.7]} 24. e6 {[%clk 0:00:10.1]} 24... Rxd1+ {[%clk
0:00:56.2]} 0-1